bitfinex-derivatives/quotes_SOLF0:USTF0_20240925
["timestamp","ask_amount","ask_price","bid_price","bid_amount"]
[1727243292662,3.3232,150.45,150.42,8.17]
[1727243293367,3.323,150.46,150.44,8.17]
[1727243293569,8.17,150.51,150.46,8.17]
[1727243294268,3.323,150.46,150.38,4.1161]
[1727243294470,3.323,150.46,150.45,8.17]
[1727243300972,8.17,150.52,150.45,8.17]
[1727243301173,8.17,150.52,150.46,8.17]
[1727243302566,3.3226,150.48,150.46,8.17]
[1727243302978,3.3226,150.48,150.44,3.3232]
[1727243303179,3.3226,150.48,150.46,8.17]
[1727243304581,3.3227,150.47,150.46,8.17]
[1727243308270,8.17,150.5,150.42,3.3238]
[1727243308477,8.17,150.5,150.44,8.17]
[1727243309181,3.3231,150.46,150.44,8.17]
[1727243311579,3.3231,150.46,150.42,3.3238]
[1727243311881,3.3231,150.46,150.45,8.17]
[1727243312872,8.17,150.48,150.38,4.1161]
[1727243313283,8.17,150.48,150.42,8.17]
[1727243314682,3.3235,150.44,150.42,8.17]
[1727243315288,3.3235,150.44,150.43,8.17]
[1727243316386,3.3235,150.44,150.41,3.324]
[1727243316582,3.3235,150.44,150.43,8.17]
[1727243317183,3.3235,150.44,150.41,3.324]
[1727243317583,3.3235,150.44,150.43,8.17]
[1727243319083,8.17,150.47,150.38,4.1161]
[1727243319387,8.17,150.45,150.39,8.17]
[1727243319781,3.3242,150.41,150.4,8.17]
[1727243321789,3.3239,150.42,150.4,8.17]
[1727243322491,3.3239,150.42,150.38,6.1179]
[1727243322681,3.3239,150.42,150.41,8.17]
[1727243323797,3.3236,150.43,150.41,8.17]
[1727243324089,3.9472,150.49,150.38,2.7932]
[1727243324090,8.17,150.47,150.38,2.7932]
[1727243324298,8.17,150.47,150.41,8.17]
[1727243325192,8.17,150.47,150.43,8.17]
[1727243325593,3.3234,150.45,150.43,8.17]
[1727243327790,3.323,150.46,150.42,3.3238]
[1727243327993,2.6069,150.54,150.45,8.17]
[1727243328303,16.70183366,150.54,150.44,8.17]
[1727243328504,8.17,150.5,150.44,8.17]
[1727243329393,3.3227,150.48,150.44,8.17]
[1727243330200,3.3228,150.47,150.44,8.17]
[1727243330396,3.3228,150.47,150.46,8.17]
[1727243330599,14.09493366,150.53,150.46,8.17]
[1727243330899,8.17,150.52,150.46,8.17]
[1727243331089,22.26493366,150.52,150.46,8.17]
[1727243331294,8.17,150.52,150.46,8.17]
[1727243331801,3.3225,150.48,150.46,8.17]
[1727243337109,3.3227,150.47,150.46,8.17]
[1727243337500,3.3231,150.46,150.38,2.7932]
[1727243337703,8.17,150.48,150.42,8.17]
[1727243338300,8.17,150.48,150.42,11.4938]
[1727243338905,3.3231,150.46,150.44,8.17]
[1727243340715,3.3231,150.45,150.44,8.17]
[1727243341604,8.17,150.46,150.4,3.3242]
[1727243341809,8.17,150.46,150.41,8.17]
[1727243342506,8.17,150.48,150.42,8.17]
[1727243343015,3.3232,150.45,150.44,8.17]
[1727243343402,3.3234,150.44,150.42,8.17]
[1727243344704,3.3236,150.43,150.42,8.17]
[1727243345816,3.3234,150.44,150.42,8.17]
[1727243346115,3.3234,150.44,150.41,3.324]
[1727243346316,3.3234,150.44,150.43,8.17]
[1727243347214,3.3234,150.44,150.41,8.17]
[1727243347410,3.3243,150.4,150.38,2.7932]
[1727243347606,3.3243,150.4,150.38,9.5743]
[1727243348217,3.3243,150.4,150.38,1.4043]
[1727243348413,3.3243,150.4,150.38,9.5743]
[1727243355814,3.3241,150.41,150.39,8.17]
[1727243356013,8.17,150.45,150.39,8.17]
[1727243356916,3.3239,150.42,150.39,8.17]
[1727243357115,3.3239,150.42,150.39,11.4945]
[1727243359424,3.324,150.41,150.39,8.17]
[1727243361427,8.17,150.44,150.38,4.7289]
[1727243361428,3.3244,150.4,150.38,8.17]
[1727243361619,8.17,150.44,150.38,8.17]
[1727243361823,3.324,150.42,150.39,8.17]
[1727243362228,8.17,150.44,150.39,8.17]
[1727243363029,3.3241,150.41,150.39,8.17]
[1727243364532,8.17,150.44,150.39,8.17]
[1727243364732,8.17,150.44,150.38,8.17]
[1727243364934,3.3241,150.41,150.38,8.17]
[1727243366436,3.3241,150.41,150.39,8.17]
[1727243371431,8.17,150.45,150.39,8.17]
[1727243372037,1.357,150.47,150.39,8.17]
[1727243372235,8.17,150.45,150.39,8.17]
[1727243373529,3.324,150.42,150.39,8.17]
[1727243376336,3.3241,150.41,150.39,8.17]
[1727243376534,3.3241,150.41,150.38,3.3246]
[1727243376843,3.3241,150.41,150.38,11.4946]
[1727243377544,8.17,150.45,150.38,11.4946]
[1727243378039,3.324,150.42,150.39,3.3244]
[1727243380745,3.3236,150.43,150.39,8.17]
[1727243381140,8.17,150.46,150.39,8.17]
[1727243381341,1.3133,150.51,150.41,8.17]
[1727243381544,18.72355078,150.51,150.42,8.17]
[1727243381741,14.0442138,150.5,150.42,8.17]
[1727243381940,8.17,150.49,150.42,8.17]
[1727243382440,3.323,150.46,150.43,3.3235]
[1727243382746,8.17,150.47,150.42,8.17]
[1727243383841,3.3232,150.45,150.42,8.17]
[1727243384643,3.3232,150.45,150.39,1.36]
[1727243384842,8.17,150.47,150.41,8.17]
[1727243385243,8.17,150.46,150.39,1.36]
[1727243385444,8.17,150.44,150.39,1.36]
[1727243385744,4.67401571,150.51,150.39,1.36]
[1727243385945,8.17,150.43,150.39,1.36]
[1727243386143,3.3241,150.41,150.38,1.3193]
[1727243386341,8.17,150.43,150.38,1.3193]
[1727243386539,8.17,150.42,150.37,1.3764]
[1727243386746,3.3246,150.39,150.37,1.3764]
[1727243387546,8.17,150.4,150.35,11.48238361]
[1727243388647,3.3246,150.39,150.35,14.80758361]
[1727243388843,3.3246,150.39,150.36,8.17]
[1727243390450,8.17,150.4,150.35,3.31238361]
[1727243390754,8.17,150.4,150.35,11.48238361]
[1727243391048,8.17,150.38,150.34,1.3222]
[1727243391451,3.3253,150.36,150.34,1.3222]
[1727243392145,3.3254,150.35,150.33,79.8]
[1727243392546,8.17,150.38,150.33,79.8]
[1727243393051,3.3254,150.35,150.33,79.8]
[1727243394750,3.3252,150.36,150.33,87.97]
[1727243395651,3.3252,150.36,150.33,8.17]
[1727243396053,3.3254,150.35,150.33,8.17]
[1727243396854,3.3254,150.35,150.32,8.17]
[1727243397245,3.3256,150.34,150.3,9.5118]
[1727243397847,3.3256,150.34,150.3,12.8381]
[1727243398657,3.3256,150.34,150.31,8.17]
[1727243400756,3.326,150.33,150.3,9.5118]
[1727243401060,8.17,150.36,150.3,9.5118]
[1727243401255,3.3256,150.34,150.3,12.8381]
[1727243401455,3.32801147,150.42,150.31,8.17]
[1727243401657,3.3253,150.36,150.33,8.17]
[1727243402058,8.17,150.38,150.33,8.17]
[1727243402357,8.17,150.38,150.32,11.496]
[1727243402558,3.3254,150.35,150.32,8.17]
[1727243403252,8.17,150.38,150.33,3.3258]
[1727243403253,3.3252,150.36,150.33,3.3258]
[1727243403755,8.17,150.35,150.3,1.3418]
[1727243403959,8.17,150.35,150.3,9.5118]
[1727243404563,3.3257,150.34,150.3,12.8381]
[1727243404763,3.3257,150.34,150.3,9.5118]
[1727243405662,11.4954,150.35,150.31,3.3262]
[1727243405859,5.97414921,150.43,150.31,8.17]
[1727243406058,8.17,150.37,150.31,8.17]
[1727243406460,8.17,150.35,150.24,79.82]
[1727243406661,8.17,150.34,150.25,2.7749]
[1727243406965,3.3259,150.33,150.29,3.3265]
[1727243407464,8.17,150.34,150.28,4.7428]
[1727243407465,3.3262,150.32,150.28,4.7428]
[1727243407866,3.3262,150.32,150.28,1.416]
[1727243408763,3.3262,150.32,150.29,3.3267]
[1727243409268,11.4962,150.32,150.29,3.3267]
[1727243409566,11.4962,150.32,150.28,4.7428]
[1727243412867,8.17,150.32,150.28,1.416]
[1727243413059,1.2851,150.4,150.25,10.9449]
[1727243413267,8.17,150.28,150.23,8.17]
[1727243413769,8.17,150.28,150.25,3.3274]
[1727243413962,8.17,150.3,150.25,3.3274]
[1727243414167,8.17,150.31,150.25,8.17]
[1727243414361,8.17,150.31,150.22,1.3941]
[1727243414566,3.3267,150.29,150.25,11.4974]
[1727243415173,3.3267,150.29,150.22,1.3941]
[1727243415376,3.327,150.28,150.23,8.17]
[1727243415670,8.17,150.29,150.22,1.3941]
[1727243416171,3.3269,150.28,150.24,8.17]
[1727243416764,1.2897,150.34,150.27,3.3271]
[1727243416962,8.17,150.32,150.25,8.17]
[1727243417167,3.3266,150.3,150.22,1.3941]
[1727243417369,3.3266,150.3,150.27,3.3271]
[1727243417566,3.3266,150.3,150.26,8.17]
[1727243417767,3.3263,150.31,150.26,8.17]
[1727243417967,11.4963,150.31,150.27,3.3269]
[1727243418573,3.326,150.33,150.26,8.17]
[1727243418778,8.17,150.33,150.27,8.17]
[1727243419170,3.3262,150.32,150.28,3.3268]
[1727243419567,3.3262,150.32,150.27,8.17]
[1727243420768,3.3262,150.32,150.28,3.3268]
[1727243421772,3.3262,150.32,150.29,3.3267]
[1727243422473,3.9015,150.38,150.28,8.17]
[1727243422681,8.17,150.34,150.28,9.5054]
[1727243422971,6.6468,150.45,150.33,3.3256]
[1727243423172,8.17,150.37,150.33,3.3256]
[1727243423772,3.3251,150.36,150.33,3.3256]
[1727243423973,3.3251,150.36,150.32,3.3259]
[1727243425079,11.4954,150.35,150.32,3.3259]
[1727243427882,11.4951,150.36,150.33,3.3257]
[1727243428381,11.4951,150.36,150.32,3.326]
[1727243428982,3.3251,150.36,150.33,3.3258]
[1727243429184,11.4951,150.36,150.33,3.3258]
[1727243432982,77.83517959,150.41,150.33,11.51897185]
[1727243433184,8.17,150.4,150.33,8.17]
[1727243433489,8.17,150.38,150.32,8.17]
[1727243433884,8.17,150.38,150.28,1.3354]
[1727243434081,3.325,150.37,150.33,3.3257]
[1727243434691,3.3246,150.39,150.33,11.54547408]
[1727243434885,3.9006,150.44,150.36,8.17]
[1727243435089,8.17,150.42,150.36,8.17]
[1727243435784,3.3242,150.41,150.37,3.3249]
[1727243437282,87.65437798,150.47,150.37,8.17]
[1727243437480,8.17,150.43,150.37,8.17]
[1727243437787,8.17,150.43,150.36,4.0957]
[1727243437987,8.17,150.43,150.36,12.2657]
[1727243438189,3.3241,150.41,150.37,3.3249]
[1727243440487,3.3241,150.41,150.37,11.4949]
[1727243442986,3.3241,150.41,150.38,3.3247]
[1727243443191,3.3239,150.42,150.38,11.4947]
[1727243443788,3.3241,150.41,150.38,11.4947]
[1727243447891,3.3241,150.41,150.36,4.0957]
[1727243447892,8.17,150.42,150.36,2.7293]
[1727243448097,8.17,150.4,150.36,2.7293]
[1727243448492,8.17,150.4,150.36,1.3344]
[1727243448789,8.17,150.39,150.33,11.46952108]
[1727243448989,3.3253,150.36,150.33,11.46952108]
[1727243449501,3.3253,150.36,150.33,14.79532108]
[1727243449797,3.325,150.37,150.33,11.46952108]
[1727243450292,3.325,150.37,150.33,14.79522108]
[1727243450491,8.17,150.39,150.33,11.4957]
[1727243450694,8.17,150.39,150.33,8.17]
[1727243452402,3.3251,150.37,150.33,11.4957]
[1727243453596,3.8973,150.43,150.36,8.17]
[1727243453802,8.17,150.41,150.36,8.17]
[1727243455799,3.3247,150.38,150.36,8.17]
[1727243459399,8.17,150.41,150.36,8.17]
[1727243459602,3.3245,150.39,150.36,11.4951]
[1727243460004,3.3244,150.4,150.37,8.17]
[1727243460405,8.17,150.41,150.36,11.4951]
[1727243460610,8.17,150.41,150.36,8.17]
[1727243462011,3.3246,150.39,150.36,8.17]
[1727243464599,3.3243,150.4,150.37,8.17]
[1727243465105,8.17,150.43,150.35,1.3578]
[1727243465106,8.17,150.43,150.38,8.17]
[1727243466007,3.3242,150.41,150.38,11.4947]
[1727243467408,3.3241,150.41,150.37,3.3249]
[1727243467609,8.17,150.43,150.38,8.17]
[1727243468703,3.3243,150.4,150.38,8.17]
[1727243470009,3.3241,150.41,150.38,11.4946]
[1727243470707,3.3241,150.41,150.39,8.17]
[1727243471710,3.3239,150.42,150.39,11.4945]
[1727243472808,3.3239,150.42,150.35,1.3578]
[1727243472809,3.3241,150.41,150.38,8.17]
[1727243473509,3.3243,150.4,150.38,8.17]
[1727243479309,3.3238,150.42,150.39,8.17]
[1727243479516,87.65437798,150.47,150.39,8.17]
[1727243479517,8.17,150.45,150.39,8.17]
[1727243481815,3.3241,150.41,150.39,8.17]
[1727243484314,3.3239,150.42,150.39,8.17]
[1727243484506,3.3239,150.42,150.39,11.4944]
[1727243485408,3.3237,150.43,150.39,11.4944]
[1727243485814,3.3237,150.43,150.4,11.4942]
[1727243486015,3.3235,150.44,150.42,8.17]
[1727243486413,95.82437798,150.47,150.42,8.17]
[1727243486607,3.3235,150.44,150.42,8.17]
[1727243489112,3.3235,150.44,150.43,8.17]
[1727243497223,3.3232,150.45,150.43,8.17]
[1727243497428,95.82437798,150.47,150.43,8.17]
[1727243498017,3.3233,150.45,150.43,8.17]
[1727243498924,3.3234,150.44,150.37,2.638]
[1727243499130,3.3234,150.44,150.42,8.17]
[1727243499530,8.17,150.47,150.42,8.17]
[1727243499734,3.3233,150.45,150.42,8.17]
[1727243499927,3.3233,150.45,150.42,11.4938]
[1727243501027,8.17,150.47,150.37,2.638]
[1727243501229,8.17,150.47,150.41,8.17]
[1727243501734,8.17,150.46,150.41,8.17]
[1727243503937,8.17,150.46,150.39,3.3244]
[1727243504134,8.17,150.46,150.4,8.17]
[1727243504440,18.01235027,150.51,150.4,8.17]
[1727243504639,8.17,150.47,150.41,8.17]
[1727243505843,8.17,150.47,150.4,8.17]
[1727243506037,8.17,150.45,150.4,8.17]
[1727243506843,3.3238,150.42,150.4,8.17]
[1727243507436,8.17,150.45,150.38,3.3246]
[1727243507645,8.17,150.45,150.4,8.17]
[1727243508439,3.324,150.41,150.4,8.17]
[1727243515748,3.3239,150.42,150.4,8.17]
[1727243517654,8.17,150.44,150.37,2.638]
[1727243517854,8.17,150.44,150.38,8.17]
[1727243518755,3.3242,150.41,150.38,8.17]
[1727243519143,3.3242,150.41,150.37,5.9629]
[1727243519351,3.3242,150.41,150.38,8.17]
[1727243520254,3.3242,150.41,150.4,8.17]
[1727243521155,3.3238,150.42,150.4,8.17]
[1727243523456,8.17,150.45,150.4,8.17]
[1727243523457,11.4932,150.45,150.4,8.17]
[1727243523856,3.3232,150.45,150.41,8.17]
[1727243524260,8.17,150.47,150.41,11.4939]
[1727243524959,8.17,150.47,150.42,3.3238]
[1727243525154,8.17,150.47,150.41,8.17]
[1727243525461,8.17,150.47,150.43,3.3234]
[1727243525762,8.17,150.49,150.43,3.3234]
[1727243525961,8.17,150.49,150.44,3.3233]
[1727243526157,8.17,150.49,150.44,8.17]
[1727243526864,8.17,150.46,150.41,8.17]
[1727243527158,8.17,150.46,150.37,2.638]
[1727243527364,8.17,150.46,150.41,8.17]
[1727243527864,8.17,150.46,150.42,3.3237]
[1727243528055,8.17,150.46,150.41,8.17]
[1727243528263,8.17,150.48,150.42,8.17]
[1727243528956,8.17,150.48,150.44,3.3232]
[1727243536460,10.79500547,150.47,150.44,3.3232]
[1727243537171,10.79500547,150.47,150.43,8.17]
[1727243537472,10.79500547,150.47,150.35,65.36481492]
[1727243537665,101.28568558,150.51,150.35,46.93434]
[1727243537666,24.86874502,150.46,150.35,46.93434]
[1727243537865,24.86874502,150.46,150.42,8.17]
[1727243538065,18.96500547,150.45,150.35,18.53007418]
[1727243538269,8.17,150.45,150.39,8.17]
[1727243539773,8.17,150.45,150.4,3.3242]
[1727243539972,8.17,150.45,150.4,3.56974639]
[1727243541569,8.17,150.45,150.42,3.3238]
[1727243541975,8.17,150.45,150.4,3.56974639]
[1727243542368,8.17,150.45,150.42,3.3238]
[1727243542676,8.17,150.45,150.4,3.56974639]
[1727243543279,101.28568558,150.51,150.42,8.17]
[1727243543477,8.17,150.49,150.43,8.17]
[1727243543777,8.17,150.49,150.43,0.44400983]
[1727243544177,8.17,150.49,150.43,0.02413067]
[1727243544379,8.17,150.49,150.38,8.28998702]
[1727243544577,101.28568558,150.51,150.44,8.17]
[1727243544884,8.17,150.49,150.45,6.13731908]
[1727243545075,8.17,150.49,150.44,11.4933]
[1727243545374,8.17,150.49,150.45,6.13796661]
[1727243545579,8.17,150.49,150.38,8.29186914]
[1727243545580,8.17,150.48,150.38,8.29186914]
[1727243545780,8.17,150.48,150.43,8.17]
[1727243546078,8.17,150.48,150.44,6.13773503]
[1727243546274,101.28568558,150.51,150.45,6.13773503]
[1727243546472,8.17,150.48,150.43,11.4935]
[1727243546680,8.17,150.48,150.44,6.13831704]
[1727243546876,8.17,150.48,150.45,6.13831704]
[1727243547070,8.17,150.48,150.43,11.4935]
[1727243547278,8.17,150.48,150.44,9.46245134]
[1727243547578,8.17,150.49,150.45,6.13915134]
[1727243547779,8.17,150.49,150.44,11.4933]
[1727243548085,8.17,150.49,150.45,6.13892792]
[1727243548379,8.17,150.49,150.44,11.4933]
[1727243548780,8.17,150.49,150.45,6.13952981]
[1727243548976,8.17,150.49,150.44,11.4933]
[1727243549177,8.17,150.49,150.46,6.13955586]
[1727243549380,8.17,150.49,150.44,11.4933]
[1727243549583,8.17,150.49,150.45,6.13953831]
[1727243549782,8.17,150.49,150.44,11.4933]
[1727243549982,8.17,150.49,150.45,6.13954068]
[1727243550182,8.17,150.49,150.46,6.13954068]
[1727243550383,8.17,150.49,150.44,11.4933]
[1727243550590,8.17,150.49,150.45,6.13945539]
[1727243550883,8.17,150.49,150.46,6.13945539]
[1727243551080,8.17,150.49,150.44,11.4933]
[1727243551282,8.17,150.49,150.45,6.1396728]
[1727243551476,99.96388558,150.51,150.46,14.3096728]
[1727243551689,97.37038558,150.51,150.47,14.3096728]
[1727243551889,97.37038558,150.51,150.48,6.1396728]
[1727243552086,97.37038558,150.51,150.47,8.17]
[1727243552287,97.37038558,150.51,150.48,6.13856998]
[1727243552483,97.37038558,150.51,150.47,8.17]
[1727243552684,97.37038558,150.51,150.48,6.13700884]
[1727243552883,97.37038558,150.51,150.47,11.4926]
[1727243553085,97.37038558,150.51,150.48,6.13701499]
[1727243553280,97.37038558,150.51,150.47,11.4926]
[1727243553480,97.37038558,150.51,150.48,6.13600136]
[1727243553790,97.37038558,150.51,150.47,11.4926]
[1727243553983,97.37038558,150.51,150.48,6.1359766]
[1727243554189,97.37038558,150.51,150.47,11.4926]
[1727243554491,97.37038558,150.51,150.48,6.13461072]
[1727243554682,97.37038558,150.51,150.47,11.4926]
[1727243554881,97.37038558,150.51,150.48,6.13461072]
[1727243555082,97.37038558,150.51,150.47,11.4926]
[1727243555282,97.37038558,150.51,150.48,6.1345741]
[1727243555483,97.37038558,150.51,150.47,11.4926]
[1727243555690,97.37038558,150.51,150.48,6.1332507]
[1727243555892,97.37038558,150.51,150.47,11.4926]
[1727243556082,97.37038558,150.51,150.48,6.13325069]
[1727243556284,97.37038558,150.51,150.47,11.4926]
[1727243556489,97.37038558,150.51,150.48,6.13197493]
[1727243556692,97.37038558,150.51,150.47,11.4926]
[1727243556891,97.37038558,150.51,150.48,6.13197493]
[1727243557086,97.37038558,150.51,150.47,11.4926]
[1727243557391,97.37038558,150.51,150.48,6.13071561]
[1727243557689,97.37038558,150.51,150.47,11.4926]
[1727243557889,8.17,150.52,150.48,6.13071617]
[1727243558084,8.17,150.52,150.48,3.3225]
[1727243558297,3.40655632,150.54,150.48,3.3225]
[1727243558480,23.9994,150.61,150.48,3.3225]
[1727243558680,8.17,150.53,150.48,3.3225]
[1727243558892,11.41701569,150.53,150.48,3.3225]
[1727243559288,11.41701569,150.53,150.45,3.323]
[1727243559593,8.17,150.5,150.46,6.12811971]
[1727243559790,8.17,150.5,150.45,11.493]
[1727243559995,8.17,150.5,150.46,6.1284018]
[1727243560290,8.17,150.5,150.45,11.493]
[1727243560494,8.17,150.49,150.46,6.12800995]
[1727243560695,8.17,150.49,150.45,3.323]
[1727243561489,8.17,150.49,150.46,9.45057583]
[1727243561693,8.17,150.5,150.46,3.3229]
[1727243563698,8.17,150.5,150.45,11.493]
[1727243565989,7.46248457,150.56,150.46,11.4929]
[1727243566194,8.17,150.52,150.46,11.4929]
[1727243566398,7.46248457,150.56,150.46,8.17]
[1727243566594,8.17,150.52,150.46,8.17]
[1727243567001,8.17,150.53,150.47,8.17]
[1727243567490,8.17,150.53,150.47,11.4926]
[1727243569802,3.3218,150.52,150.47,11.4926]
[1727243570302,3.3218,150.52,150.48,3.3224]
[1727243571095,3.3214,150.53,150.48,3.3224]
[1727243571301,3.3214,150.53,150.49,3.3222]
[1727243571607,3.3214,150.53,150.47,8.17]
[1727243571807,3.3214,150.53,150.48,3.3224]
[1727243572802,3.3216,150.52,150.48,3.3224]
[1727243573003,11.4916,150.52,150.48,3.3224]
[1727243573590,11.4916,150.52,150.47,11.4926]
[1727243573795,11.4916,150.52,150.47,3.3226]
[1727243574302,3.3218,150.51,150.47,3.3226]
[1727243577205,11.4918,150.51,150.47,3.3226]
[1727243578204,3.322,150.5,150.47,3.3226]
[1727243585116,3.322,150.5,150.46,3.3229]
[1727243586507,3.322,150.5,150.47,3.3227]
[1727243592523,3.322,150.5,150.46,11.4929]
[1727243595924,8.17,150.48,150.42,10.8989]
[1727243596123,27.42248457,150.56,150.43,6.12990647]
[1727243596420,27.42248457,150.56,150.43,3.3235]
[1727243596421,11.4928,150.47,150.43,3.3235]
[1727243596723,3.3228,150.47,150.44,6.13004179]
[1727243597024,3.3226,150.48,150.44,8.17]
[1727243597421,8.17,150.49,150.42,2.7289]
[1727243597625,8.17,150.49,150.43,8.17]
[1727243597824,3.3228,150.47,150.43,11.4935]
[1727243602529,3.3228,150.47,150.44,3.3234]
[1727243603632,11.4926,150.48,150.44,3.3234]
[1727243604835,3.3226,150.48,150.44,3.3234]
[1727243605437,8.17,150.49,150.43,8.17]
[1727243606136,3.3229,150.47,150.43,11.4936]
[1727243607532,8.17,150.46,150.43,3.3236]
[1727243608232,8.17,150.45,150.42,3.3238]
[1727243609442,11.4931,150.46,150.42,3.3238]
[1727243610942,3.3231,150.46,150.42,3.3238]
[1727243613344,8.17,150.47,150.41,8.17]
[1727243613948,3.3233,150.45,150.42,3.3237]
[1727243614141,8.17,150.47,150.42,3.3237]
[1727243614336,3.3231,150.46,150.42,3.3237]
[1727243615042,11.4931,150.46,150.42,3.3237]
[1727243625948,11.4931,150.46,150.41,8.17]
[1727243626346,3.3228,150.47,150.41,8.17]
[1727243626548,8.17,150.46,150.41,11.4939]
[1727243627141,8.17,150.45,150.41,11.4939]
[1727243627748,8.17,150.45,150.42,3.3238]
[1727243630542,3.3226,150.48,150.43,3.3236]
[1727243630748,117.29566435,150.57,150.44,8.17]
[1727243631049,11.4923,150.49,150.44,11.4932]
[1727243633854,3.3226,150.48,150.43,3.3235]
[1727243634152,3.3226,150.48,150.43,11.4935]
[1727243637460,11.4926,150.48,150.43,11.4935]
[1727243637660,3.3227,150.47,150.43,11.4935]
[1727243641359,7.46248457,150.56,150.39,1.4162]
[1727243641360,8.17,150.44,150.39,1.4162]
[1727243641566,8.17,150.44,150.39,9.5862]
[1727243641865,3.3241,150.41,150.37,8.17]
[1727243642866,3.3241,150.41,150.37,11.4949]
[1727243643564,3.3241,150.41,150.38,8.17]
[1727243644564,8.17,150.44,150.39,8.17]
[1727243644769,4.058,150.51,150.39,8.17]
[1727243644770,3.32291142,150.47,150.39,8.17]
[1727243644972,8.17,150.44,150.39,8.17]
[1727243645962,3.3237,150.43,150.39,11.4943]
[1727243647070,3.3238,150.42,150.39,8.17]
[1727243647269,3.3238,150.42,150.38,8.17]
[1727243647469,3.3238,150.42,150.36,66.11165743]
[1727243647674,8.17,150.43,150.38,8.17]
[1727243648174,3.324,150.41,150.38,8.17]
[1727243650474,3.324,150.41,150.39,8.17]
[1727243650971,4.058,150.51,150.4,8.17]
[1727243651174,8.17,150.45,150.4,8.17]
[1727243651476,3.38355617,150.47,150.4,8.17]
[1727243651773,4.058,150.51,150.4,8.17]
[1727243652074,8.17,150.45,150.4,8.17]
[1727243652972,3.3236,150.43,150.4,8.17]
[1727243653974,3.3238,150.42,150.38,11.4947]
[1727243655678,3.3238,150.42,150.4,8.17]
[1727243657469,3.3236,150.43,150.4,8.17]
[1727243658174,3.3239,150.42,150.4,8.17]
[1727243658379,8.17,150.45,150.4,8.17]
[1727243658673,8.17,150.43,150.38,8.17]
[1727243659075,8.17,150.42,150.36,66.11165743]
[1727243659279,8.17,150.42,150.36,74.28165743]
[1727243659579,3.3245,150.4,150.36,77.60675743]
[1727243659779,8.17,150.42,150.36,77.60675743]
[1727243660376,8.17,150.42,150.36,69.43675743]
[1727243660580,8.17,150.42,150.36,77.60675743]
[1727243660770,3.3246,150.39,150.36,74.28165743]
[1727243662784,3.3246,150.39,150.36,77.60675743]
[1727243663581,3.3246,150.39,150.38,8.17]
[1727243663781,3.3243,150.4,150.38,8.17]
[1727243670077,3.3245,150.39,150.36,6.0813]
[1727243670384,8.17,150.42,150.37,8.17]
[1727243670886,3.3244,150.4,150.37,8.17]
[1727243672686,3.3243,150.4,150.37,11.4948]
[1727243675391,3.3238,150.42,150.39,8.17]
[1727243675583,8.17,150.45,150.4,8.17]
[1727243675783,8.17,150.45,150.41,8.17]
[1727243675990,3.3237,150.43,150.41,8.17]